fUSD/lending_fUSD_20250403
["ID","MTS","AMOUNT","RATE_DAILY","PERIOD"]
[357064807,1743684637660,-414.0,0.00017253,2]
[357064810,1743684637670,-1197.86,0.00017626,2]
[357064812,1743684637682,-24959.71633565,0.000182,2]
[357064815,1743684637702,-3741.06,0.00018533,2]
[357064817,1743684637713,-4681.27,0.00018533,2]
[357064819,1743684637723,-299.99,0.00018533,4]
[357064821,1743684637733,-150.99,0.00018533,2]
[357064823,1743684637743,-951.67,0.00018533,2]
[357064825,1743684637752,-7452.73,0.00018533,2]
[357064827,1743684637762,-4457.63595375,0.00019,2]
[357064829,1743684637773,-181.21254998,0.00019,2]
[357064831,1743684637783,-1000.0,0.00019219,2]
[357064833,1743684637793,-2000.0,0.00019245,2]
[357064835,1743684637803,-150.0,0.00019492,7]
[357064837,1743684637814,-300.0,0.00019499,2]
[357064839,1743684637824,-500.0,0.00019516,2]
[357064841,1743684637835,-1541.4,0.00019516,2]
[357064843,1743684637845,-250.0,0.00019599,2]
[357064845,1743684637855,-1921.64,0.00019644,2]
[357064847,1743684637865,-154.28,0.00019693,2]
[357064849,1743684637875,-767.66,0.00019708,2]
[357064851,1743684637885,-200.0,0.00019727,2]
[357064853,1743684637895,-1169.85,0.00019732,2]
[357064855,1743684637905,-200.0,0.00019771,2]
[357064857,1743684637915,-23900.0,0.00019771,2]
[357064860,1743684637927,-1716.22,0.00019771,2]
[357064863,1743684637939,-246.83,0.00019777,2]
[357064865,1743684637949,-150.0,0.0001978,2]
[357064867,1743684637959,-1197.86,0.0001989,2]
[357064869,1743684637973,-500.0,0.00019973,2]
[357064871,1743684637985,-16630.50582574,0.00019999,2]
[357064873,1743684637995,-43434.76837728,0.0002,4]
[357064875,1743684638006,-2000.0,0.0002,4]
[357064877,1743684638020,-151.66,0.0002,2]
[357064879,1743684638030,-151.66,0.0002,2]
[357064881,1743684638040,-151.66,0.0002,2]
[357064883,1743684638050,-151.66,0.0002,2]
[357064885,1743684638060,-185.99,0.00020017,2]
[357064887,1743684638070,-1844.05,0.00020022,2]
[357064889,1743684638080,-5462.13547207,0.00020456,2]
[357064892,1743684638089,-223.13,0.00020783,2]
[357064894,1743684638099,-223.13,0.00020887,2]
[357064896,1743684638109,-2000.0,0.00021111,4]
[357064898,1743684638119,-154.28,0.00021334,2]
[357064900,1743684638129,-1000.0,0.00021621,2]
[357064902,1743684638140,-150.0,0.00021917,2]
[357064904,1743684638150,-246.88933364,0.00022,2]
[357064906,1743684638159,-500.0,0.00022,2]
[357064908,1743684638170,-1197.86,0.00022154,2]
[357064910,1743684638182,-2000.0,0.00022222,4]
[357064912,1743684638192,-317.0,0.00022356,2]
[357064914,1743684638201,-501.77792923,0.00022832,2]
[357064916,1743684638211,-501.98251027,0.00022832,2]
[357064918,1743684638220,-351.26736246,0.00022832,2]
[357064920,1743684638230,-154.28,0.00022975,2]
[357064922,1743684638241,-151.0,0.00023233,7]
[357064924,1743684638251,-151.0,0.00023233,7]
[357064926,1743684638261,-152.681771,0.00023233,7]
[357064929,1743684638271,-152.536637,0.00023233,7]
[357064931,1743684638281,-151.0,0.00023233,5]
[357064933,1743684638290,-5462.13547207,0.00023233,2]
[357064935,1743684638300,-152.874271,0.00023238,7]
[357064937,1743684638310,-153.375843,0.00023238,7]
[357064939,1743684638320,-153.501416,0.00023238,7]
[357064940,1743684638330,-151.0,0.00023238,7]
[357064943,1743684638340,-151.0,0.00023238,7]
[357064945,1743684638350,-151.0,0.00023238,7]
[357064947,1743684638359,-151.0,0.00023238,7]
[357064949,1743684638369,-151.0,0.00023238,7]
[357064951,1743684638379,-278.105709,0.00023238,7]
[357064953,1743684638389,-278.105709,0.00023238,7]
[357064955,1743684638398,-151.0,0.00023238,7]
[357064957,1743684638408,-151.0,0.00023238,7]
[357064959,1743684638417,-156.220398,0.00023238,7]
[357064961,1743684638431,-151.0,0.00023238,7]
[357064963,1743684638440,-151.0,0.00023238,7]
[357064965,1743684638451,-218.370309,0.00023238,7]
[357064967,1743684638461,-158.561551,0.00023238,7]
[357064969,1743684638471,-151.0,0.00023238,7]
[357064971,1743684638481,-151.0,0.00023238,7]
[357064973,1743684638492,-151.0,0.00023238,7]
[357064975,1743684638501,-151.0,0.00023238,7]
[357064977,1743684638511,-151.0,0.00023238,7]
[357064979,1743684638521,-151.0,0.00023238,7]
[357064981,1743684638532,-787.650593,0.00023238,7]
[357064983,1743684638542,-787.650593,0.00023238,7]
[357064985,1743684638551,-152.711126,0.00023238,7]
[357064987,1743684638564,-150.0,0.00023287,2]
[357064989,1743684638574,-2000.0,0.00023333,4]
[357064991,1743684638583,-174.168608,0.00023449,7]
[357064993,1743684638593,-155.236002,0.00023449,7]
[357064995,1743684638602,-151.0,0.00023449,7]
[357064998,1743684638611,-188.588896,0.00023449,7]
[357065000,1743684638621,-188.588896,0.00023449,7]
[357065001,1743684638630,-1284.0,0.00023449,2]
[357065003,1743684638640,-2047.043,0.00023449,2]
[357065005,1743684638649,-1366.0,0.00023449,2]
[357065008,1743684638659,-574.0,0.00023449,2]
[357065010,1743684638668,-789.0,0.00023449,2]
[357065012,1743684638682,-1434.0,0.00023449,2]
[357065014,1743684638692,-1276.0,0.00023449,2]
[357065016,1743684638702,-909.0,0.00023449,2]
[357065018,1743684638712,-543.0,0.00023449,2]
[357065020,1743684638723,-4095.0,0.00023449,2]
[357065022,1743684638733,-180.382885,0.00023449,7]
[357065024,1743684638743,-219.762,0.00023449,2]
[357065026,1743684638753,-151.0,0.00023449,7]
[357065028,1743684638762,-151.0,0.00023449,7]
[357065030,1743684638773,-3949.0,0.00023449,2]
[357065032,1743684638783,-212.661442,0.00023449,7]
[357065034,1743684638792,-1118.0,0.00023449,2]
[357065036,1743684638802,-517.3342758,0.00023479,2]
[357065038,1743684638811,-12380.37648292,0.0002361,7]
[357065040,1743684638821,-151.0,0.0002361,7]
[357065042,1743684638831,-179.31,0.00023836,2]
[357065044,1743684638841,-158.639196,0.00024,7]
[357065046,1743684638851,-153.81791,0.00024,7]
[357065047,1743684638861,-151.0,0.00024,7]
[357065048,1743684638871,-1000.0,0.00024023,2]
[357065049,1743684638881,-1197.86,0.00024418,2]
[357065050,1743684638890,-2000.0,0.00024444,4]
[357065051,1743684638900,-154.28,0.00024616,2]
[357065052,1743684638909,-4322.27505945,0.0002465,2]
[357065053,1743684638919,-256.3,0.00024658,4]
[357065054,1743684638932,-321.39,0.00024658,2]
[357065055,1743684638942,-270.133267,0.000248,7]
[357065057,1743684638953,-188.588896,0.000248,7]
[357065059,1743684638962,-188.588896,0.000248,7]
[357065061,1743684638972,-151.0,0.000248,7]
[357065063,1743684638982,-151.0,0.000248,7]
[357065065,1743684638995,-156.55656,0.000248,7]
[357065067,1743684639004,-151.0,0.000248,7]
[357065069,1743684639015,-151.0,0.000248,7]
[357065071,1743684639025,-151.0,0.000248,7]
[357065073,1743684639034,-151.0,0.000248,7]
[357065075,1743684639043,-151.0,0.000248,7]
[357065077,1743684639054,-151.0,0.000248,7]
[357065080,1743684639066,-151.66,0.0002489,2]
[357065081,1743684639075,-151.0,0.000249,7]
[357065084,1743684639085,-151.0,0.000249,7]
[357065086,1743684639094,-151.0,0.000249,7]
[357065088,1743684639104,-232.218822,0.000249,7]
[357065090,1743684639113,-151.0,0.000249,7]
[357065091,1743684639123,-278.105709,0.000249,7]
[357065118,1743684639350,-278.105709,0.000249,7]
[357065121,1743684639361,-188.588896,0.000249,7]
[357065124,1743684639370,-188.588896,0.000249,7]
[357065126,1743684639380,-153.660439,0.000249,7]
[357065128,1743684639389,-151.0,0.000249,7]
[357065130,1743684639399,-3200.0,0.000249,9]
[357065132,1743684639409,-151.0,0.000249,7]
[357065134,1743684639418,-101781.12813907,0.000249,2]
[357065137,1743684639440,-572.98716333,0.000249,2]
[357065139,1743684639452,-284.13581162,0.000249,2]
[357065141,1743684639464,-3499.99999996,0.000249,2]
[357065145,1743684639476,-155534.15802765,0.000249,2]
[357065166,1743684639555,-525.90000001,0.000249,2]
[357065170,1743684639567,-2895.08118131,0.000249,2]
[357065174,1743684639580,-23466.12548205,0.000249,2]
[357065177,1743684639589,-151.0,0.000249,7]
[357065180,1743684639599,-151.0,0.000249,7]
[357065182,1743684639608,-280.866338,0.000249,7]
[357065184,1743684639617,-156.497526,0.000249,7]
[357065186,1743684639626,-536.10798396,0.000249,7]
[357065189,1743684639646,-251.54260904,0.000249,7]
[357065191,1743684639655,-744.29158097,0.000249,7]
[357065193,1743684639667,-43.35901203,0.000249,7]
[357065195,1743684639682,-219.064945,0.000249,7]
[357065197,1743684639691,-367.06728274,0.00024958,2]
[357065199,1743684639705,-210.80455454,0.00024958,2]
[357065201,1743684639718,-201.46544546,0.00025,2]
[357065222,1743684639912,-151.521972,0.00023449,7]
[357065224,1743684639922,-110.978028,0.00025,2]
[357065228,1743684639946,-302.16848,0.00025,2]
[357065240,1743684640060,-472.837485,0.00025,2]
[357065242,1743684640072,-1838.93319766,0.00025,2]
[357065244,1743684640081,-1024.00181746,0.00025,2]
[357065246,1743684640090,-160.90182557,0.00025,2]
[357065248,1743684640100,-3249.94773005,0.000251,2]
[357065250,1743684640110,-282.21570121,0.000253,10]
[357065252,1743684640119,-1000.0,0.00025452,2]
[357065254,1743684640129,-2000.0,0.00025556,4]
[357065256,1743684640140,-151.0,0.00025958,2]
[357065258,1743684640150,-500.0,0.00025958,2]
[357065260,1743684640160,-19061.46744034,0.0002597,30]
[357065262,1743684640169,-500.0,0.00025985,2]
[357065264,1743684640182,-576.7489133,0.0002599,2]
[357065266,1743684640192,-4433.65,0.00026,2]
[357065268,1743684640202,-5462.13547207,0.00026011,2]
[357065270,1743684640211,-929.738,0.00026013,2]
[357065272,1743684640221,-154.28,0.00026257,2]
[357065274,1743684640231,-1000.0,0.00026426,2]
[357065276,1743684640240,-1284.0,0.00026449,2]
[357065278,1743684640249,-2041.0,0.00026449,2]
[357065280,1743684640258,-1366.0,0.00026449,2]
[357065282,1743684640268,-574.0,0.00026449,2]
[357065284,1743684640277,-789.0,0.00026449,2]
[357065286,1743684640286,-1432.0,0.00026449,2]
[357065288,1743684640295,-1272.0,0.00026449,2]
[357065290,1743684640305,-907.0,0.00026449,2]
[357065292,1743684640314,-543.0,0.00026449,2]
[357065294,1743684640324,-4085.0,0.00026449,2]
[357065296,1743684640333,-151.0,0.00026449,2]
[357065298,1743684640342,-1042.655,0.00026449,2]
[357065300,1743684640351,-2000.0,0.00026667,4]
[357065303,1743684640361,-1197.86,0.00026682,2]
[357065305,1743684640371,-158.7,0.00026849,2]
[357065307,1743684640381,-484.8,0.00026849,2]
[357065309,1743684640390,-161.33,0.00026849,2]
[357065311,1743684640400,-250.0,0.00027,2]
[357065313,1743684640409,-300.0,0.00027397,30]
[357065315,1743684640419,-185.29,0.00027397,2]
[357065317,1743684640431,-457.0,0.000274,2]
[357065319,1743684640440,-3266.79006616,0.000275,2]
[357065321,1743684640450,-1169.85,0.00027625,2]
[357065323,1743684640459,-2000.0,0.00027778,4]
[357065325,1743684640468,-154.28,0.00027898,2]
[357065327,1743684640479,-678.0,0.00028,5]
[357065329,1743684640488,-151.0,0.00028203,7]
[357065331,1743684640497,-1046.1,0.00028203,2]
[357065333,1743684640506,-381.12,0.00028203,2]
[357065335,1743684640515,-273.891,0.00028631,20]
[357065337,1743684640525,-5462.13547207,0.00028789,2]
[357065339,1743684640534,-151.0,0.00028789,7]
[357065341,1743684640545,-151.0,0.00028789,7]
[357065343,1743684640554,-151.0,0.00028789,7]
[357065345,1743684640566,-787.650593,0.00028789,7]
[357065347,1743684640576,-787.650593,0.00028789,7]
[357065349,1743684640588,-1000.0,0.00028828,2]
[357065351,1743684640598,-1056.11721696,0.00028889,4]
[357065353,1743684640607,-151.0,0.000289,7]
[357065355,1743684640617,-278.105709,0.000289,7]
[357065357,1743684640629,-89.25425215,0.000289,7]
[357065358,1743684640641,-188.85145685,0.000289,7]
[357065359,1743684640651,-1197.86,0.00028945,2]
[357065360,1743684640660,-123.83879786,0.00029,2]
[357065361,1743684640671,-737.38546299,0.00029,2]
[357065362,1743684640687,-642.12959607,0.00029,2]
[357065638,1743684643536,-33263.50169832,0.00029,2]
[357065640,1743684643546,-300.0,0.00029,2]
[357065642,1743684643555,-153.77113,0.00029,7]
[357065643,1743684643565,-151.0,0.00029,7]
[357065645,1743684643575,-151.0,0.00029,7]
[357065647,1743684643584,-188.588896,0.00029,7]
[357065649,1743684643594,-188.588896,0.00029,7]
[357065651,1743684643603,-185.29,0.00029224,2]
[357065652,1743684643613,-1281.0,0.00029449,2]
[357065654,1743684643622,-2041.0,0.00029449,2]
[357065656,1743684643632,-1366.0,0.00029449,2]
[357065657,1743684643641,-568.0,0.00029449,2]
[357065659,1743684643651,-151.0,0.00029449,2]
[357065661,1743684643660,-154.28,0.0002954,2]
[357065672,1743684643670,-317.019038,0.0003,30]
[357065674,1743684643816,-212.0,0.0003,2]
[357065676,1743684643826,-300.0,0.00030822,30]
[357065678,1743684643836,-350.0,0.00031,2]
[357065680,1743684643845,-185.29,0.0003105,2]
[357065681,1743684643855,-1197.86,0.00031209,2]
[357065683,1743684643864,-5462.13547207,0.00031567,2]
[357065685,1743684643874,-30905.61425474,0.00032,2]
[357065687,1743684643885,-140031.51708238,0.00032,2]
[357065691,1743684643924,-1167.51,0.00032,2]
[357065693,1743684643948,-57998.26053825,0.00032,2]
[357065695,1743684643958,-151.0,0.00032,7]
[357065697,1743684643970,-278.105709,0.00032,7]
[357065699,1743684643980,-278.105709,0.00032,7]
[357065701,1743684643990,-188.588896,0.00032,7]
[357065703,1743684644000,-188.588896,0.00032,7]
[357065705,1743684644010,-151.0,0.00032,7]
[357065707,1743684644020,-151.0,0.00032,7]
[357065709,1743684644030,-151.0,0.00032,7]
[357065710,1743684644039,-194.330376,0.00032,7]
[357065711,1743684644051,-787.650593,0.00032,7]
[357065712,1743684644061,-787.650593,0.00032,7]
[357065713,1743684644070,-517.3342758,0.00032058,3]
[357065714,1743684644080,-166.0,0.00032449,2]
[357065715,1743684644090,-151.66,0.00032525,2]
[357065716,1743684644099,-96067.1,0.00032535,2]
[357065717,1743684644108,-151.0,0.00032535,7]
[357065718,1743684644118,-301.54583,0.00032535,7]
[357065719,1743684644127,-151.0,0.00032535,7]
[357065720,1743684644137,-278.105709,0.00032535,7]
[357065721,1743684644147,-278.105709,0.00032535,7]
[357065722,1743684644157,-188.588896,0.00032535,7]
[357065723,1743684644166,-188.588896,0.00032535,7]
[357065725,1743684644176,-151.0,0.00032535,7]
[357065726,1743684644189,-151.0,0.00032535,7]
[357065728,1743684644199,-151.0,0.00032535,7]
[357065729,1743684644208,-787.650593,0.00032535,7]
[357065731,1743684644217,-787.650593,0.00032535,7]
[357065734,1743684644227,-484.8,0.00032646,2]
[357065736,1743684644237,-151.0,0.00032877,2]
[357065738,1743684644247,-185.29,0.00032877,2]
[357065739,1743684644256,-578.24153001,0.000329,30]
[357065742,1743684644266,-1053.08806999,0.000329,30]
[357065744,1743684644276,-29757.35244595,0.000329,14]
[357065924,1743684645655,-151.0,0.00023449,7]
[357065926,1743684645666,-61.48755405,0.000329,14]
[357065928,1743684645675,-47.83027871,0.000329,2]
[357065930,1743684645690,-409.27642518,0.000329,2]
[357065932,1743684645700,-760.45103399,0.000329,2]
[357065934,1743684645710,-161.99,0.00032932,120]
[357065936,1743684645720,-400.0,0.00033,2]
[357065938,1743684645730,-156.587,0.00033425,2]
[357065940,1743684645740,-1197.86,0.00033473,2]
[357065942,1743684645750,-739.77126496,0.00033913,6]
[357065944,1743684645760,-162.380719,0.00033973,2]
[357065946,1743684645770,-1427.64645978,0.00033983,2]
[357065953,1743684645830,-151.0,0.000249,7]
[357065955,1743684645840,-12898.99382544,0.00033983,2]
[357065961,1743684645890,-290.04688114,0.00033983,2]
[357065968,1743684645950,-429.61568039,0.00033983,2]
[357065970,1743684645960,-1135.3,0.00034,5]
[357065971,1743684645974,-300.0,0.00034247,30]
[357065973,1743684645984,-5462.13547207,0.00034344,2]
[357065975,1743684645994,-332.79732881,0.000345,3]
[357065978,1743684646004,-285.18722889,0.00034521,2]
[357065980,1743684646015,-150.0,0.00034548,10]
[357065982,1743684646025,-912.8030421,0.00034784,2]
[357065984,1743684646034,-192.70766068,0.00034813,7]
[357065986,1743684646044,-11441.34633076,0.00034815,2]
[357065987,1743684646055,-400.0,0.0003488,120]
[357065990,1743684646065,-10529.63456963,0.00034881,30]
[357065992,1743684646077,-40874.1297285,0.00034881,30]
[357065994,1743684646089,-16469.2,0.00034881,30]
[357065996,1743684646101,-1363.84209215,0.00034881,30]
[357065998,1743684646112,-499.84999778,0.00034881,30]
[357067080,1743684719384,3280.05404537,0.00034913,90]
[357067081,1743685282040,663.33,0.00034891,120]
[357067082,1743685306002,1000.0,0.00034891,120]
[357067083,1743685344768,500.0,0.00034891,120]
[357067084,1743685384975,500.0,0.00034891,120]
[357067085,1743685553567,787.41528626,0.00032,120]
[357067086,1743685626167,-1000.0,0.000149,2]
[357067087,1743685626191,-321.69373229,0.000149,2]
[357067088,1743685626212,-17.94440255,0.0001639,2]
[357067089,1743685642146,-232.05559745,0.0001639,2]
[357067090,1743685642169,-250.0,0.0001731,2]
[357067091,1743685642191,-163.33020747,0.0001962,2]
[357067092,1743685642213,-295.96620828,0.0001972,2]
[357067093,1743685650094,-1556.45379172,0.0001972,2]
[357067094,1743685650117,-150.0,0.00021917,2]
[357067095,1743685650140,-150.0,0.00023287,2]
[357067096,1743685650163,-6855.3256,0.00024318,2]
[357067097,1743685650184,-150.0,0.00024657,2]
[357067098,1743685650206,-150.0,0.00026027,2]
[357067099,1743685650228,-150.99,0.00026849,2]
[357067100,1743685650249,-156.95,0.00026849,2]
[357067101,1743685650271,-150.0,0.00027397,2]
[357067102,1743685650293,-300.0,0.00027397,30]
[357067103,1743685650315,-325.0,0.000274,2]
[357067104,1743685650339,-760.0,0.000274,2]
[357067105,1743685650359,-302.2187,0.000287,2]
[357067106,1743685650382,-88.78951573,0.00028767,2]
[357067116,1743685831912,-250.0,0.00027,2]
[357067117,1743685831922,-61.21048427,0.00028767,2]
[357067118,1743685831931,-300.0,0.00029,2]
[357067119,1743685831941,-5694.07119642,0.000291,2]
[357067120,1743685831967,-206.92880358,0.000291,2]
[357067121,1743685831976,-326.29134845,0.000299,3]
[357067122,1743685831987,-4995.36766704,0.000299,3]
[357067123,1743685832027,-232.34098451,0.000299,3]
[357067124,1743685832036,-156.02471048,0.00030136,2]
[357067125,1743685832046,-62.28730501,0.00030315,2]
[357067126,1743685832057,-798.32798818,0.00030315,2]
[357067127,1743685832068,-3.60470681,0.00030315,2]
[357067128,1743685832077,-417.564,0.000305,26]
[357067129,1743685832087,-2894.14109319,0.000306,5]
[357067130,1743685832098,-636.84170514,0.000306,5]
[357067131,1743685832252,-2023.01720167,0.000306,5]
[357067132,1743685832262,-350.0,0.00031,2]
[357067133,1743685832271,-260.9,0.00031772,2]
[357067134,1743685832281,-200.0,0.00031791,2]
[357067135,1743685832291,-881.36,0.00031815,2]
[357067136,1743685832300,-272.0,0.00031862,2]
[357067137,1743685832310,-150.0,0.00031904,7]
[357067138,1743685832319,-4807.18,0.00032005,2]
[357067139,1743685832328,-157.37,0.00032068,2]
[357067140,1743685832338,-250.0,0.0003228,2]
[357067141,1743685832347,-300.0,0.00032522,30]
[357067142,1743685832357,-864.22,0.00032579,2]
[357067143,1743685832367,-200.0,0.0003273,2]
[357067144,1743685832376,-1000.0,0.00032761,2]
[357067145,1743685832390,-340.40485443,0.000329,30]
[357067662,1743685837693,-237.83667558,0.000329,30]
[357067664,1743685837703,-62.79619579,0.00032921,2]
[357067906,1743685840080,-135.90380421,0.00032921,2]
[357067908,1743685840090,-160.44,0.00032932,120]
[357067910,1743685840099,-400.0,0.00033,2]
[357067912,1743685840109,-212.64,0.00033204,120]
[357067914,1743685840120,-322.2,0.00033402,2]
[357067916,1743685840130,-1319.89814615,0.00033495,2]
[357067937,1743685840332,-346.09779568,0.00033495,2]
[357068310,1743685844065,-6985.00405817,0.00033495,2]
[357068312,1743685844075,-150.0,0.00033501,2]
[357068314,1743685844084,-1066.79594183,0.00033501,2]
[357068317,1743685844096,-528.99100342,0.00033501,2]
[357068319,1743685844105,-1321.93513333,0.00033511,2]
[357068486,1743685846026,-9783.82275147,0.00033511,2]
[357068488,1743685846038,-4322.0621152,0.00033511,2]
[357068490,1743685846048,-1014.77,0.00033511,2]
[357068492,1743685846057,-2848.5678848,0.00033511,2]
[357070163,1743686321674,13051.17414495,0.00034889,30]
[357070165,1743686709413,-299.28208993,0.00015,2]
[357070166,1743686735198,-158.57130424,0.00015,2]
[357070167,1743686737181,999.13673257,8e-05,2]
[357070168,1743686756024,-158.59649864,0.0001495,2]
[357070169,1743686768632,-201.41207421,0.0001495,2]
[357070170,1743686768660,-310798.58792579,0.00015,2]
[357070171,1743686785761,4555.99179559,0.00031,120]
[357070172,1743686809547,545.06180063,0.0002,30]
[357070174,1743686830134,-150.0,0.00014999,2]
[357070175,1743686830160,-8509.17980609,0.00015,2]
[357070176,1743686832074,-174.0,0.000149,2]
[357070177,1743686852094,-496.19242062,0.000149,2]
[357070178,1743686852115,-670.19242062,0.000149,2]
[357070179,1743686852136,-241.41166218,0.0001499,2]
[357070180,1743686854519,-173.84203801,0.000149,2]
[357070181,1743686879973,659.67840369,0.0001,2]
[357070182,1743686927089,508.63513185,0.00015,30]
[357070183,1743686951265,500000.0,0.00032,120]
[357070184,1743686985026,-1492.72914525,0.000149,2]
[357070198,1743687031943,-405.5017405,0.000149,2]
[357070199,1743687031953,-170.19858874,0.000149,2]
[357070200,1743687031962,-294.87421659,0.0001499,2]
[357070201,1743687031974,-530.51006306,0.0001499,2]
[357070202,1743687031983,-150.0,0.00014999,2]
[357070203,1743687031993,-28.79306167,0.00015,2]
[357070204,1743687032009,-469.9405751,0.00015,2]
[357070205,1743687032020,-1056.39,0.00015,2]
[357070206,1743687032060,-1209.1542531,0.00015,2]
[357070207,1743687032071,-1334.0,0.00015,2]
[357070208,1743687032091,-397.01,0.00015,2]
[357070209,1743687032199,-673.21684438,0.00015,2]
[357070210,1743687032211,-762.17542217,0.00015,2]
[357070211,1743687032223,-639.79393057,0.00015,2]
[357070212,1743687032235,-18314.47971075,0.00015,2]
[357070213,1743687032321,-992.32608986,0.00015,2]
[357070214,1743687032337,-1397.7819348,0.00015,2]
[357070215,1743687032355,-2441.56500959,0.00015,2]
[357070679,1743687037941,-334.47,0.00015,2]
[357070699,1743687038145,-1973.77812,0.00015,2]
[357070701,1743687038156,-2035.765428,0.00015,2]
[357070703,1743687038170,-2172.528378,0.00015,2]
[357070705,1743687038182,-2052.2052,0.00015,2]
[357070707,1743687038194,-2063.57616,0.00015,2]
[357070745,1743687038631,-2055.66979094,0.00015,2]
[357070747,1743687038643,-417.59,0.00015,2]
[357070749,1743687038655,-10626.75042062,0.00015,2]
[357070880,1743687040180,-6932.87440467,0.00015,2]
[357070882,1743687040192,-369.33024768,0.00015,2]
[357070884,1743687040205,-467.27471581,0.00015,2]
[357070900,1743687040369,-5212.08797928,0.00015,2]
[357070902,1743687040381,-3191.39276772,0.00015,2]
[357070966,1743687042973,-41004.41008744,0.00015,2]
[357071070,1743687044163,-5927.71180558,0.00015,2]
[357071072,1743687044179,-5373.68481926,0.00015,2]
[357071260,1743687046246,-4079.80440904,0.00015,2]
[357071907,1743687122087,350.0,0.0001495,12]
[357071908,1743687172196,170.11,0.00027024,120]
[357071909,1743687172429,170.11,0.00030026,120]
[357071911,1743687183438,-234.04300204,0.00014899,2]
[357071915,1743687364072,-242.0,0.00014899,2]
[357071916,1743687385316,185.45098,0.0002411,32]
[357071917,1743687450916,-300.0,0.0001639,12]
[357071918,1743687478004,237.9537,0.00034888,120]
[357071920,1743687690659,185.45099,0.0002066,25]
[357071921,1743687690859,185.45099,0.0002315,30]
[357071922,1743687691019,185.45099,0.000244,33]
[357071923,1743687691049,185.45099,0.000219,28]
[357071924,1743687724159,151.0,0.00034891,30]
[357071925,1743687725265,151.0,0.00034891,30]
[357071926,1743687725771,151.0,0.00034891,30]
[357071927,1743687726431,151.0,0.00034891,30]
[357071928,1743687727084,151.0,0.00034891,30]
[357071929,1743687993153,185.451,0.00015,13]
[357071930,1743688029099,-615.7487,0.000149,2]
[357071931,1743688029123,-349.3754,0.000149,2]
[357071932,1743688029147,-3678.77498331,0.000149,2]
[357071933,1743688029171,-4715.96920975,0.000149,2]
[357071935,1743688048098,-878.35384311,0.000149,2]
[357071936,1743688048119,-171.51086676,0.000149,2]
[357071937,1743688048141,-399.04153996,0.000149,2]
[357071938,1743688199604,-300.76886004,0.000149,2]
[357071939,1743688199634,-635.7406,0.000149,2]
[357071940,1743688199664,-1708.9526,0.000149,2]
[357071941,1743688199692,-1124.12714589,0.000149,2]
[357071949,1743688232423,-403.90804429,0.000149,2]
[357071950,1743688232435,-1114.16668528,0.000149,2]
[357071951,1743688232525,-424.51552454,0.000149,2]
[357071952,1743688232535,-171.51086675,0.000149,2]
[357071953,1743688232545,-3310.89748497,0.000149,2]
[357071954,1743688232555,-250.0,0.0001495,2]
[357071955,1743688232564,-629.83043926,0.00014973,2]
[357071956,1743688232574,-506.41551795,0.00014973,2]
[357071957,1743688232583,-500.0,0.00014973,2]
[357071958,1743688232593,-153.34836567,0.00014973,2]
[357071959,1743688232602,-500.0,0.00014973,2]
[357071960,1743688232614,-7572.28153265,0.0001499,2]
[357071961,1743688232624,-8119.29540992,0.00014999,2]